[Event "*** Titled Tuesday Blitz"]
[Site "Chess.com"]
[Date "2021.03.30"]
[Round "11"]
[White "Lion-Al-Messi"]
[Black "vovachesss"]
[Result "0-1"]
[WhiteElo "2504"]
[BlackElo "2652"]
[TimeControl "180+1"]
[EndTime "12:08:15 PDT"]
[Termination "vovachesss won by checkmate"]

1. d4 {[%clk 0:03:00.9]} 1... d5 {[%clk 0:02:53.5]} 2. Nf3 {[%clk 0:03:00.8]}
2... Bf5 {[%clk 0:02:53.1]} 3. Nc3 {[%clk 0:03:00.6]} 3... e6 {[%clk 0:02:52.3]}
4. Bf4 {[%clk 0:03:00]} 4... Bd6 {[%clk 0:02:51.9]} 5. e3 {[%clk 0:02:59.5]}
5... Bxf4 {[%clk 0:02:46.7]} 6. exf4 {[%clk 0:03:00.4]} 6... a6 {[%clk
0:02:44.7]} 7. Bd3 {[%clk 0:03:00.9]} 7... Bxd3 {[%clk 0:02:43.4]} 8. cxd3
{[%clk 0:03:01.8]} 8... c5 {[%clk 0:02:44.3]} 9. dxc5 {[%clk 0:03:00.4]} 9...
Qc7 {[%clk 0:02:44.8]} 10. O-O {[%clk 0:02:58.2]} 10... Qxf4 {[%clk 0:02:33.2]}
11. d4 {[%clk 0:02:59.1]} 11... Nc6 {[%clk 0:02:33]} 12. Qb3 {[%clk 0:02:55.8]}
12... Qc7 {[%clk 0:02:30.7]} 13. Na4 {[%clk 0:02:53.8]} 13... Nf6 {[%clk
0:02:26.7]} 14. Nb6 {[%clk 0:02:53.9]} 14... Rd8 {[%clk 0:02:27.3]} 15. h3
{[%clk 0:02:52.4]} 15... O-O {[%clk 0:02:27.2]} 16. Rfe1 {[%clk 0:02:51.8]}
16... Ne4 {[%clk 0:01:57.8]} 17. a3 {[%clk 0:02:48.1]} 17... f5 {[%clk
0:01:36.9]} 18. Qd3 {[%clk 0:02:46.2]} 18... g5 {[%clk 0:01:26.9]} 19. b4 {[%clk
0:02:43.6]} 19... g4 {[%clk 0:01:26.3]} 20. Nh2 {[%clk 0:02:37.9]} 20... gxh3
{[%clk 0:01:19.6]} 21. Qxh3 {[%clk 0:02:38.8]} 21... Nxd4 {[%clk 0:01:15.2]} 22.
Rad1 {[%clk 0:02:29.9]} 22... Nc6 {[%clk 0:01:06.9]} 23. Nf3 {[%clk 0:02:28.8]}
23... Kh8 {[%clk 0:01:05.2]} 24. g3 {[%clk 0:02:25.8]} 24... Rg8 {[%clk
0:01:05]} 25. Kg2 {[%clk 0:02:26]} 25... Rg7 {[%clk 0:01:01.5]} 26. Rh1 {[%clk
0:02:25.4]} 26... Rdg8 {[%clk 0:01:01.3]} 27. Kf1 {[%clk 0:02:17.3]} 27... Ne5
{[%clk 0:00:31.4]} 28. Nd4 {[%clk 0:02:08.9]} 28... Qf7 {[%clk 0:00:26.8]} 29.
Nxd5 {[%clk 0:02:00.1]} 29... exd5 {[%clk 0:00:19.6]} 30. Nxf5 {[%clk
0:01:59.4]} 30... Nxg3+ {[%clk 0:00:12.4]} 31. fxg3 {[%clk 0:01:49.9]} 31...
Rxg3 {[%clk 0:00:11]} 32. Qh5 {[%clk 0:01:06.9]} 32... Rf3+ {[%clk 0:00:10.2]}
33. Ke1 {[%clk 0:00:59.9]} 33... Rg1+ {[%clk 0:00:07.6]} 34. Ke2 {[%clk
0:00:57]} 34... Rg2+ {[%clk 0:00:07.8]} 35. Ke1 {[%clk 0:00:56.3]} 35... Nd3+
{[%clk 0:00:08.3]} 36. Rxd3 {[%clk 0:00:55.4]} 36... Qe6+ {[%clk 0:00:05.7]} 37.
Re3 {[%clk 0:00:40.1]} 37... Rxe3+ {[%clk 0:00:05.4]} 38. Kd1 {[%clk 0:00:40.3]}
38... Rd3+ {[%clk 0:00:02.7]} 39. Kc1 {[%clk 0:00:40.8]} 39... Rc3+ {[%clk
0:00:02.3]} 40. Kb1 {[%clk 0:00:40.8]} 40... Qe4+ {[%clk 0:00:02.7]} 41. Ka1
{[%clk 0:00:40.1]} 41... Rxa3# {[%clk 0:00:03.3]} 0-1

[Event "*** Titled Tuesday Blitz"]
[Site "Chess.com"]
[Date "2021.03.30"]
[Round "11"]
[White "Nayemhaque22"]
[Black "crazyluzhinTh3"]
[Result "1-0"]
[WhiteElo "2410"]
[BlackElo "2514"]
[TimeControl "180+1"]
[EndTime "12:08:15 PDT"]
[Termination "Nayemhaque22 won by resignation"]

1. d4 {[%clk 0:02:59.5]} 1... d6 {[%clk 0:03:00.1]} 2. e4 {[%clk 0:02:54.7]}
2... Nf6 {[%clk 0:03:00]} 3. Bd3 {[%clk 0:02:53.5]} 3... e5 {[%clk 0:02:59.7]}
4. c3 {[%clk 0:02:51.6]} 4... d5 {[%clk 0:02:57.5]} 5. dxe5 {[%clk 0:02:51.5]}
5... Nxe4 {[%clk 0:02:57.2]} 6. Nf3 {[%clk 0:02:49.2]} 6... Nc6 {[%clk
0:02:55.8]} 7. Nbd2 {[%clk 0:02:46.2]} 7... Nc5 {[%clk 0:02:53.7]} 8. Bc2 {[%clk
0:02:42.9]} 8... Bg4 {[%clk 0:02:50.2]} 9. h3 {[%clk 0:02:42.9]} 9... Bh5 {[%clk
0:02:50]} 10. O-O {[%clk 0:02:41]} 10... Ne6 {[%clk 0:02:45.8]} 11. Re1 {[%clk
0:02:32.2]} 11... Qd7 {[%clk 0:02:44.2]} 12. Nb3 {[%clk 0:02:26.4]} 12... O-O-O
{[%clk 0:02:22.9]} 13. Nbd4 {[%clk 0:02:22.4]} 13... Ncxd4 {[%clk 0:02:08.8]}
14. cxd4 {[%clk 0:02:23.3]} 14... Bxf3 {[%clk 0:02:07.2]} 15. gxf3 {[%clk
0:02:23.3]} 15... g6 {[%clk 0:01:59.2]} 16. Kg2 {[%clk 0:02:22.5]} 16... Be7
{[%clk 0:01:37]} 17. f4 {[%clk 0:02:20.2]} 17... Kb8 {[%clk 0:01:27.3]} 18. Qf3
{[%clk 0:02:14.3]} 18... Nxd4 {[%clk 0:01:26]} 19. Qd3 {[%clk 0:02:04.9]} 19...
Nxc2 {[%clk 0:01:23.3]} 20. Qxc2 {[%clk 0:02:05.8]} 20... d4 {[%clk 0:01:24.2]}
21. Qd3 {[%clk 0:02:03.4]} 21... Qd5+ {[%clk 0:01:22.7]} 22. Re4 {[%clk
0:02:00.6]} 22... Rhe8 {[%clk 0:01:17.4]} 23. Bd2 {[%clk 0:01:58.4]} 23... f5
{[%clk 0:01:17.4]} 24. exf6 {[%clk 0:01:58]} 24... Bxf6 {[%clk 0:01:17.7]} 25.
Re1 {[%clk 0:01:57]} 25... Rxe4 {[%clk 0:01:17.6]} 26. Rxe4 {[%clk 0:01:56]}
26... c5 {[%clk 0:01:14.6]} 27. b3 {[%clk 0:01:53.3]} 27... Re8 {[%clk
0:01:13.9]} 28. f3 {[%clk 0:01:53.4]} 28... Re7 {[%clk 0:01:06.3]} 29. Qe2
{[%clk 0:01:44.3]} 29... d3 {[%clk 0:01:05.9]} 30. Qe3 {[%clk 0:01:44.2]} 30...
Qd7 {[%clk 0:00:56.7]} 31. Qxc5 {[%clk 0:01:40.1]} 31... Rf7 {[%clk 0:00:38]}
32. a4 {[%clk 0:01:24.4]} 32... b6 {[%clk 0:00:38.3]} 33. Qc4 {[%clk 0:01:24]}
33... Rf8 {[%clk 0:00:30.3]} 34. a5 {[%clk 0:01:22.4]} 34... Rc8 {[%clk
0:00:30]} 35. Qb4 {[%clk 0:01:22.3]} 35... Rc6 {[%clk 0:00:17.8]} 36. Kg3 {[%clk
0:01:18.4]} 36... Kb7 {[%clk 0:00:17.6]} 37. axb6 {[%clk 0:01:13.3]} 37... Rxb6
{[%clk 0:00:17.7]} 38. Qc4 {[%clk 0:01:13.5]} 38... Rc6 {[%clk 0:00:17.3]} 39.
Qb5+ {[%clk 0:01:13.4]} 39... Kc7 {[%clk 0:00:16.2]} 40. Ba5+ {[%clk 0:01:13]}
40... Kc8 {[%clk 0:00:15.2]} 41. Bd2 {[%clk 0:01:01.4]} 41... h5 {[%clk
0:00:15.3]} 42. h4 {[%clk 0:00:59.9]} 42... Kc7 {[%clk 0:00:14.8]} 43. Ba5+
{[%clk 0:00:59.3]} 43... Kc8 {[%clk 0:00:14.2]} 44. Bd2 {[%clk 0:01:00.2]} 44...
a6 {[%clk 0:00:13.9]} 45. Qa4 {[%clk 0:00:58.7]} 45... Kb7 {[%clk 0:00:14]} 46.
Rb4+ {[%clk 0:00:58.2]} 46... Rb6 {[%clk 0:00:13.7]} 47. Rxb6+ {[%clk
0:00:57.6]} 47... Kc8 {[%clk 0:00:13]} 48. Qxa6+ {[%clk 0:00:57.2]} 1-0

[Event "*** Titled Tuesday Blitz"]
[Site "Chess.com"]
[Date "2021.03.30"]
[Round "11"]
[White "onetowin"]
[Black "LenkaPtacnikova"]
[Result "0-1"]
[WhiteElo "2010"]
[BlackElo "2160"]
[TimeControl "180+1"]
[EndTime "12:08:16 PDT"]
[Termination "LenkaPtacnikova won by resignation"]

1. d4 {[%clk 0:02:55.1]} 1... Nf6 {[%clk 0:02:57.2]} 2. Nf3 {[%clk 0:02:52.7]}
2... e6 {[%clk 0:02:57.7]} 3. g3 {[%clk 0:02:53]} 3... c5 {[%clk 0:02:56.6]} 4.
c4 {[%clk 0:02:50.4]} 4... cxd4 {[%clk 0:02:53.5]} 5. Bg2 {[%clk 0:02:46.8]}
5... Nc6 {[%clk 0:02:51.2]} 6. Nxd4 {[%clk 0:02:43.4]} 6... Bb4+ {[%clk
0:02:44.6]} 7. Bd2 {[%clk 0:02:30.6]} 7... Qa5 {[%clk 0:02:35.4]} 8. Nxc6 {[%clk
0:02:22.6]} 8... Bxd2+ {[%clk 0:02:29.1]} 9. Nxd2 {[%clk 0:02:07.8]} 9... dxc6
{[%clk 0:02:27.5]} 10. O-O {[%clk 0:02:08.4]} 10... e5 {[%clk 0:02:24.7]} 11.
Nb3 {[%clk 0:01:53.3]} 11... Qc7 {[%clk 0:02:22]} 12. Qd2 {[%clk 0:01:30.7]}
12... O-O {[%clk 0:02:19.6]} 13. Rfd1 {[%clk 0:01:26.6]} 13... Be6 {[%clk
0:02:18.8]} 14. Qc3 {[%clk 0:01:23.3]} 14... Rad8 {[%clk 0:02:10.1]} 15. c5
{[%clk 0:01:15.5]} 15... Nd5 {[%clk 0:02:05.5]} 16. Qc1 {[%clk 0:01:00.9]} 16...
h6 {[%clk 0:01:55.4]} 17. e4 {[%clk 0:01:00.2]} 17... Nb4 {[%clk 0:01:52]} 18.
a3 {[%clk 0:00:47.5]} 18... Bxb3 {[%clk 0:01:36.2]} 19. Rxd8 {[%clk 0:00:43.4]}
19... Rxd8 {[%clk 0:01:36]} 20. axb4 {[%clk 0:00:41.7]} 20... Rd1+ {[%clk
0:01:32.7]} 21. Qxd1 {[%clk 0:00:41.7]} 21... Bxd1 {[%clk 0:01:32.7]} 22. Rxd1
{[%clk 0:00:42.3]} 22... a5 {[%clk 0:01:26.7]} 23. Bh3 {[%clk 0:00:24.8]} 23...
axb4 {[%clk 0:01:23.1]} 24. Rd7 {[%clk 0:00:23]} 24... Qa5 {[%clk 0:01:21.5]}
25. Bf5 {[%clk 0:00:19.3]} 25... g6 {[%clk 0:01:20]} 26. Bh3 {[%clk 0:00:15.3]}
26... Qxc5 {[%clk 0:01:16]} 27. Rxb7 {[%clk 0:00:15.2]} 27... Qc1+ {[%clk
0:01:14.1]} 28. Kg2 {[%clk 0:00:14.4]} 28... Qxb2 {[%clk 0:01:14]} 29. Bd7
{[%clk 0:00:14.4]} 29... Qc2 {[%clk 0:01:08.2]} 30. Be8 {[%clk 0:00:14.2]} 30...
Qxe4+ {[%clk 0:01:05.6]} 31. f3 {[%clk 0:00:14.5]} 31... Qe2+ {[%clk 0:01:04.2]}
32. Kh3 {[%clk 0:00:14]} 32... Qxf3 {[%clk 0:01:02.4]} 33. Rc7 {[%clk
0:00:11.4]} 33... Qf1+ {[%clk 0:00:51.9]} 34. Kh4 {[%clk 0:00:07.8]} 34... b3
{[%clk 0:00:35.1]} 35. Rxc6 {[%clk 0:00:04.4]} 35... b2 {[%clk 0:00:32.7]} 0-1

[Event "*** Titled Tuesday Blitz"]
[Site "Chess.com"]
[Date "2021.03.30"]
[Round "11"]
[White "NikolaN98"]
[Black "anasta10"]
[Result "1-0"]
[WhiteElo "2671"]
[BlackElo "2518"]
[TimeControl "180+1"]
[EndTime "12:08:19 PDT"]
[Termination "NikolaN98 won by resignation"]

1. e4 {[%clk 0:03:00.8]} 1... e6 {[%clk 0:02:56.9]} 2. f4 {[%clk 0:02:47.1]}
2... d5 {[%clk 0:02:55.2]} 3. e5 {[%clk 0:02:46.2]} 3... c5 {[%clk 0:02:55.7]}
4. Nf3 {[%clk 0:02:45.7]} 4... Nc6 {[%clk 0:02:56.3]} 5. g3 {[%clk 0:02:46]}
5... f6 {[%clk 0:02:56.3]} 6. exf6 {[%clk 0:02:42.7]} 6... Nxf6 {[%clk
0:02:57.2]} 7. Bg2 {[%clk 0:02:42.3]} 7... Bd6 {[%clk 0:02:56.6]} 8. O-O {[%clk
0:02:38.7]} 8... O-O {[%clk 0:02:56.4]} 9. Nc3 {[%clk 0:02:35.6]} 9... a6 {[%clk
0:02:42.8]} 10. d3 {[%clk 0:02:33.1]} 10... b5 {[%clk 0:02:41.9]} 11. a4 {[%clk
0:02:30.9]} 11... b4 {[%clk 0:02:41.8]} 12. Ne2 {[%clk 0:02:31.2]} 12... Bb7
{[%clk 0:02:41.8]} 13. d4 {[%clk 0:02:27.7]} 13... Qb6 {[%clk 0:02:29.3]} 14.
Kh1 {[%clk 0:02:21.4]} 14... a5 {[%clk 0:02:00.5]} 15. Be3 {[%clk 0:02:19.1]}
15... Ne4 {[%clk 0:01:54.3]} 16. dxc5 {[%clk 0:02:08.1]} 16... Bxc5 {[%clk
0:01:52.7]} 17. Bxc5 {[%clk 0:02:08.2]} 17... Qxc5 {[%clk 0:01:53.6]} 18. Ned4
{[%clk 0:02:08.6]} 18... Nxd4 {[%clk 0:01:30.8]} 19. Qxd4 {[%clk 0:02:01.5]}
19... Rac8 {[%clk 0:01:14.3]} 20. Rac1 {[%clk 0:01:52]} 20... Rf6 {[%clk
0:01:09.7]} 21. Rfe1 {[%clk 0:01:43.9]} 21... Qc6 {[%clk 0:00:34.6]} 22. Ne5
{[%clk 0:01:41.1]} 22... Qxa4 {[%clk 0:00:21.7]} 23. Qb6 {[%clk 0:01:32]} 23...
Nc5 {[%clk 0:00:16]} 24. Ra1 {[%clk 0:01:16.8]} 24... Qxc2 {[%clk 0:00:14.3]}
25. Rac1 {[%clk 0:01:16.7]} 25... Qd2 {[%clk 0:00:10.1]} 26. Nf3 {[%clk
0:01:16.4]} 26... Qxb2 {[%clk 0:00:09]} 27. Rxc5 {[%clk 0:01:15.9]} 27... Rxc5
{[%clk 0:00:09.5]} 28. Qxc5 {[%clk 0:01:16.4]} 28... Ba6 {[%clk 0:00:05.7]} 29.
Qc6 {[%clk 0:01:02.1]} 29... Bc4 {[%clk 0:00:03.5]} 30. Qe8+ {[%clk 0:01:00]}
30... Rf8 {[%clk 0:00:03.5]} 31. Qxe6+ {[%clk 0:01:00.6]} 31... Kh8 {[%clk
0:00:04.2]} 32. Ng5 {[%clk 0:00:59.7]} 32... h6 {[%clk 0:00:03.9]} 33. Nf7+
{[%clk 0:00:47.7]} 33... Kh7 {[%clk 0:00:04.2]} 34. Ne5 {[%clk 0:00:47.9]} 34...
Rf6 {[%clk 0:00:02.5]} 35. Qe8 {[%clk 0:00:33.9]} 35... Qd2 {[%clk 0:00:03]} 36.
Rg1 {[%clk 0:00:31.4]} 36... a4 {[%clk 0:00:03]} 37. Nxc4 {[%clk 0:00:30.9]}
37... dxc4 {[%clk 0:00:03.1]} 38. Be4+ {[%clk 0:00:31]} 1-0

[Event "*** Titled Tuesday Blitz"]
[Site "Chess.com"]
[Date "2021.03.30"]
[Round "11"]
[White "LionTheLeon_06"]
[Black "scandalgod"]
[Result "0-1"]
[WhiteElo "2659"]
[BlackElo "2505"]
[TimeControl "180+1"]
[EndTime "12:08:19 PDT"]
[Termination "scandalgod won on time"]

1. d4 {[%clk 0:03:00.9]} 1... d5 {[%clk 0:02:59.7]} 2. c4 {[%clk 0:02:58.8]}
2... c6 {[%clk 0:02:59.7]} 3. Nf3 {[%clk 0:02:58.6]} 3... Nf6 {[%clk 0:03:00]}
4. Nc3 {[%clk 0:02:58.6]} 4... dxc4 {[%clk 0:02:59.9]} 5. a4 {[%clk 0:02:57.5]}
5... Bf5 {[%clk 0:02:58.7]} 6. Ne5 {[%clk 0:02:55.9]} 6... e6 {[%clk 0:02:58.6]}
7. f3 {[%clk 0:02:54.9]} 7... Bb4 {[%clk 0:02:58.5]} 8. e4 {[%clk 0:02:51.9]}
8... Bxe4 {[%clk 0:02:56.8]} 9. fxe4 {[%clk 0:02:51.9]} 9... Nxe4 {[%clk
0:02:52.4]} 10. Qf3 {[%clk 0:02:40.1]} 10... Qxd4 {[%clk 0:02:43.7]} 11. Qxf7+
{[%clk 0:02:17.7]} 11... Kd8 {[%clk 0:02:42.8]} 12. Nxc4 {[%clk 0:00:59.4]}
12... Bxc3+ {[%clk 0:02:25.4]} 13. bxc3 {[%clk 0:00:59.4]} 13... Qxc3+ {[%clk
0:02:24]} 14. Kd1 {[%clk 0:00:52.4]} 14... Qxa1 {[%clk 0:02:09]} 15. Bd3 {[%clk
0:00:43.7]} 15... Qd4 {[%clk 0:02:04.6]} 16. Ke2 {[%clk 0:00:24.3]} 16... Nd7
{[%clk 0:01:32.4]} 17. Bb2 {[%clk 0:00:20.5]} 17... Nc3+ {[%clk 0:01:15]} 18.
Kd2 {[%clk 0:00:19.3]} 18... Nc5 {[%clk 0:00:59.3]} 19. Qf3 {[%clk 0:00:09.8]}
19... Qxd3+ {[%clk 0:00:37]} 20. Qxd3+ {[%clk 0:00:09.5]} 20... Nxd3 {[%clk
0:00:37.4]} 21. Bxc3 {[%clk 0:00:08.9]} 21... Nc5 {[%clk 0:00:34.6]} 22. Bxg7
{[%clk 0:00:08.6]} 22... Rg8 {[%clk 0:00:33.7]} 23. Bf6+ {[%clk 0:00:08.9]}
23... Kc8 {[%clk 0:00:27.3]} 24. Ke3 {[%clk 0:00:06.3]} 24... Rxg2 {[%clk
0:00:25.5]} 25. Rd1 {[%clk 0:00:06.3]} 25... Nd7 {[%clk 0:00:24.1]} 26. Be7
{[%clk 0:00:03.9]} 26... Rg8 {[%clk 0:00:22.3]} 27. a5 {[%clk 0:00:03.5]} 27...
b6 {[%clk 0:00:20.8]} 28. a6 {[%clk 0:00:03.5]} 28... b5 {[%clk 0:00:20.6]} 29.
Nd6+ {[%clk 0:00:01.9]} 29... Kc7 {[%clk 0:00:20.2]} 30. Nb7 {[%clk 0:00:02.1]}
30... Rae8 {[%clk 0:00:19.3]} 31. Bd6+ {[%clk 0:00:01.3]} 31... Kb6 {[%clk
0:00:19.5]} 0-1

[Event "*** Titled Tuesday Blitz"]
[Site "Chess.com"]
[Date "2021.03.30"]
[Round "11"]
[White "JoliyRoger"]
[Black "Yaryi_sergey"]
[Result "0-1"]
[WhiteElo "2398"]
[BlackElo "2531"]
[TimeControl "180+1"]
[EndTime "12:08:22 PDT"]
[Termination "Yaryi_sergey won on time"]

1. d4 {[%clk 0:03:00.9]} 1... Nf6 {[%clk 0:02:54.8]} 2. c4 {[%clk 0:03:00.7]}
2... g6 {[%clk 0:02:39.3]} 3. Nc3 {[%clk 0:02:57.4]} 3... d5 {[%clk 0:02:08.8]}
4. Nf3 {[%clk 0:02:55.6]} 4... Bg7 {[%clk 0:00:58]} 5. Bg5 {[%clk 0:02:53.2]}
5... c6 {[%clk 0:00:57]} 6. e3 {[%clk 0:02:51.7]} 6... Ne4 {[%clk 0:00:56.4]} 7.
Bh4 {[%clk 0:02:45.9]} 7... Qa5 {[%clk 0:00:55.2]} 8. Qb3 {[%clk 0:02:40.1]}
8... Nxc3 {[%clk 0:00:54.3]} 9. bxc3 {[%clk 0:02:39.5]} 9... Na6 {[%clk
0:00:53.2]} 10. Be2 {[%clk 0:02:31.5]} 10... Bf6 {[%clk 0:00:52.8]} 11. Bxf6
{[%clk 0:02:29]} 11... exf6 {[%clk 0:00:53.1]} 12. cxd5 {[%clk 0:02:24.2]} 12...
cxd5 {[%clk 0:00:53.3]} 13. O-O {[%clk 0:02:23.9]} 13... O-O {[%clk 0:00:52.5]}
14. Bxa6 {[%clk 0:02:04.2]} 14... bxa6 {[%clk 0:00:51.2]} 15. Qb4 {[%clk
0:01:59]} 15... Qc7 {[%clk 0:00:48]} 16. Rac1 {[%clk 0:01:59.1]} 16... Rb8
{[%clk 0:00:47.2]} 17. Qa3 {[%clk 0:01:57.5]} 17... Rb6 {[%clk 0:00:46.3]} 18.
Nd2 {[%clk 0:01:56.5]} 18... Be6 {[%clk 0:00:46]} 19. Nb3 {[%clk 0:01:56.5]}
19... Rfb8 {[%clk 0:00:43.1]} 20. Nc5 {[%clk 0:01:56.3]} 20... Qd6 {[%clk
0:00:42.3]} 21. Rc2 {[%clk 0:01:40.6]} 21... f5 {[%clk 0:00:42.5]} 22. Qc1
{[%clk 0:01:39.4]} 22... Bd7 {[%clk 0:00:39.3]} 23. Re1 {[%clk 0:01:23.1]} 23...
Bb5 {[%clk 0:00:38.3]} 24. f3 {[%clk 0:01:19]} 24... Bc4 {[%clk 0:00:37.5]} 25.
e4 {[%clk 0:01:16.7]} 25... fxe4 {[%clk 0:00:37.6]} 26. fxe4 {[%clk 0:01:17.3]}
26... dxe4 {[%clk 0:00:37.9]} 27. Nxe4 {[%clk 0:01:16.5]} 27... Qd5 {[%clk
0:00:37.4]} 28. Rf2 {[%clk 0:01:10.5]} 28... f5 {[%clk 0:00:34.1]} 29. Nd2
{[%clk 0:01:02.8]} 29... Rb2 {[%clk 0:00:31.1]} 30. Nxc4 {[%clk 0:00:47.8]}
30... Rxf2 {[%clk 0:00:30]} 31. Ne3 {[%clk 0:00:44.3]} 31... Qxa2 {[%clk
0:00:29.7]} 32. g3 {[%clk 0:00:39.6]} 32... Rbb2 {[%clk 0:00:27.8]} 33. Qa1
{[%clk 0:00:31.2]} 33... Rg2+ {[%clk 0:00:26.9]} 34. Kh1 {[%clk 0:00:28.8]}
34... Rxh2+ {[%clk 0:00:26.7]} 35. Kg1 {[%clk 0:00:29.3]} 35... Rbg2+ {[%clk
0:00:26.3]} 0-1

[Event "*** Titled Tuesday Blitz"]
[Site "Chess.com"]
[Date "2021.03.30"]
[Round "11"]
[White "Tacticus_Severus"]
[Black "Trickster_Pony"]
[Result "1-0"]
[WhiteElo "2065"]
[BlackElo "1534"]
[TimeControl "180+1"]
[EndTime "12:08:23 PDT"]
[Termination "Tacticus_Severus won on time"]

1. e4 {[%clk 0:03:00.9]} 1... c5 {[%clk 0:02:58]} 2. Nf3 {[%clk 0:03:00.9]} 2...
g6 {[%clk 0:02:57]} 3. d4 {[%clk 0:03:00.9]} 3... cxd4 {[%clk 0:02:57.3]} 4.
Nxd4 {[%clk 0:03:01.6]} 4... Bg7 {[%clk 0:02:56.9]} 5. Nc3 {[%clk 0:03:02.3]}
5... Nc6 {[%clk 0:02:55.9]} 6. Nb3 {[%clk 0:03:02.2]} 6... Nf6 {[%clk 0:02:54]}
7. Be2 {[%clk 0:03:02.2]} 7... d6 {[%clk 0:02:53.6]} 8. O-O {[%clk 0:03:02.2]}
8... O-O {[%clk 0:02:49.5]} 9. Re1 {[%clk 0:03:02.5]} 9... Nd7 {[%clk
0:02:44.7]} 10. Bf1 {[%clk 0:03:02.4]} 10... a5 {[%clk 0:02:38.6]} 11. a4 {[%clk
0:03:01.6]} 11... Nc5 {[%clk 0:02:18.6]} 12. Nxc5 {[%clk 0:02:58.3]} 12... dxc5
{[%clk 0:02:19.5]} 13. Be3 {[%clk 0:02:49]} 13... Nd4 {[%clk 0:02:18.9]} 14. Nb5
{[%clk 0:02:43]} 14... Nxb5 {[%clk 0:02:08.8]} 15. Bxb5 {[%clk 0:02:42.4]} 15...
Bxb2 {[%clk 0:02:02.2]} 16. Bxc5 {[%clk 0:02:40.3]} 16... Bxa1 {[%clk
0:01:37.5]} 17. Qxa1 {[%clk 0:02:39.3]} 17... f6 {[%clk 0:01:30.4]} 18. Qa3
{[%clk 0:02:34.4]} 18... Rf7 {[%clk 0:01:26.1]} 19. Bc4 {[%clk 0:02:31.8]} 19...
e6 {[%clk 0:01:24.9]} 20. h4 {[%clk 0:02:27.5]} 20... Qc7 {[%clk 0:01:19.7]} 21.
Bb3 {[%clk 0:02:11.5]} 21... b6 {[%clk 0:01:11.7]} 22. Bd6 {[%clk 0:02:08.3]}
22... Qc3 {[%clk 0:01:11.6]} 23. Rd1 {[%clk 0:02:05.4]} 23... Bb7 {[%clk
0:01:01.6]} 24. Bxe6 {[%clk 0:02:00.9]} 24... Qxa3 {[%clk 0:00:57.3]} 25. Bxa3
{[%clk 0:01:59.6]} 25... Bc6 {[%clk 0:00:37.9]} 26. Rd6 {[%clk 0:01:46.7]} 26...
Bxa4 {[%clk 0:00:32.1]} 27. Rxb6 {[%clk 0:01:46.8]} 27... Ra7 {[%clk 0:00:27]}
28. c4 {[%clk 0:01:42.7]} 28... Kg7 {[%clk 0:00:22]} 29. Bxf7 {[%clk 0:01:39.8]}
29... Kxf7 {[%clk 0:00:20.5]} 30. Bb2 {[%clk 0:01:36.9]} 30... Rc7 {[%clk
0:00:20.1]} 31. Rxf6+ {[%clk 0:01:35.9]} 31... Ke7 {[%clk 0:00:17.8]} 32. Ra6
{[%clk 0:01:30.9]} 32... Rxc4 {[%clk 0:00:17.3]} 33. Rxa5 {[%clk 0:01:26.8]}
33... Rxe4 {[%clk 0:00:16.8]} 34. Ra7+ {[%clk 0:01:26.6]} 34... Bd7 {[%clk
0:00:15.4]} 35. Ba3+ {[%clk 0:01:14.6]} 35... Ke8 {[%clk 0:00:13.6]} 36. Ra8+
{[%clk 0:01:12.6]} 36... Kf7 {[%clk 0:00:12.5]} 37. Rf8+ {[%clk 0:01:11.8]}
37... Ke6 {[%clk 0:00:12.6]} 38. h5 {[%clk 0:01:02.9]} 38... gxh5 {[%clk
0:00:07.9]} 39. Rh8 {[%clk 0:01:02]} 39... Re1+ {[%clk 0:00:06.9]} 40. Kh2
{[%clk 0:01:01.5]} 40... Ra1 {[%clk 0:00:05.3]} 41. Bc5 {[%clk 0:01:00.7]} 41...
Bc6 {[%clk 0:00:04.5]} 42. Rxh7 {[%clk 0:00:58.6]} 42... Ra5 {[%clk 0:00:04.6]}
43. Be3 {[%clk 0:00:58.1]} 43... Rf5 {[%clk 0:00:02.6]} 44. Rh6+ {[%clk
0:00:57.5]} 44... Kd7 {[%clk 0:00:02.4]} 45. Kg3 {[%clk 0:00:55.2]} 45... Kc7
{[%clk 0:00:01.2]} 46. Bf4+ {[%clk 0:00:50.5]} 46... Kd7 {[%clk 0:00:01.6]} 47.
Rh7+ {[%clk 0:00:50]} 47... Kc8 {[%clk 0:00:01.7]} 48. Rc7+ {[%clk 0:00:48.5]}
48... Kb8 {[%clk 0:00:01.4]} 49. Rxc6+ {[%clk 0:00:49.2]} 1-0